bitfinex-derivatives/quotes_BTCF0:USTF0_20250506
["timestamp","ask_amount","ask_price","bid_price","bid_amount"]
[1746539696656,0.001,93516.0,93515.0,0.2139229]
[1746539697046,0.2149206,93516.0,93515.0,0.2139229]
[1746539697247,0.2149206,93516.0,93515.0,0.40758872]
[1746539697449,0.001,93516.0,93515.0,0.40758872]
[1746539697861,0.2149206,93516.0,93515.0,0.40758872]
[1746539698052,0.2945206,93516.0,93515.0,0.19366582]
[1746539698252,0.2945206,93516.0,93515.0,0.40758872]
[1746539698449,0.2945206,93516.0,93515.0,0.178]
[1746539698650,0.2945206,93516.0,93515.0,0.3919229]
[1746539698954,0.2945206,93516.0,93515.0,0.178]
[1746539699155,0.2945206,93516.0,93515.0,0.3919229]
[1746539699364,0.2945206,93516.0,93515.0,0.178]
[1746539699859,0.30703303,93516.0,93515.0,0.3919229]
[1746539700855,0.01351243,93516.0,93515.0,0.3919229]
[1746539701050,0.01351243,93516.0,93515.0,0.9129229]
[1746539701360,0.3208136,93538.0,93537.0,0.2138725]
[1746539701554,0.3208136,93538.0,93534.0,0.0534687]
[1746539701555,0.2138725,93537.0,93534.0,0.0534687]
[1746539701757,0.2966771,93536.0,93535.0,0.2138771]
[1746539702052,0.2966771,93536.0,93535.0,0.3918771]
[1746539702653,0.3763771,93536.0,93535.0,0.3918771]
[1746539705561,0.3763771,93536.0,93535.0,0.40761139]
[1746539706558,0.3763771,93536.0,93535.0,0.19373429]
[1746539707562,0.3763771,93536.0,93535.0,0.178]
[1746539708262,0.3763771,93536.0,93535.0,0.2138771]
[1746539708651,0.213884,93532.0,93531.0,0.1188]
[1746539708964,0.213884,93532.0,93531.0,0.3326863]
[1746539709166,0.213884,93532.0,93531.0,0.5106863]
[1746539709355,0.213884,93532.0,93531.0,0.3918863]
[1746539710065,0.213884,93532.0,93531.0,0.5144863]
[1746539710256,0.213884,93532.0,93531.0,0.6349863]
[1746539711258,0.213884,93532.0,93531.0,0.3006]
[1746539711462,0.5347242,93530.0,93493.0,0.3608]
[1746539711658,0.2139617,93498.0,93493.0,0.3608]
[1746539712066,0.2139617,93498.0,93497.0,0.241174]
[1746539712266,0.2139617,93498.0,93497.0,0.419174]
[1746539712857,0.2139617,93498.0,93497.0,0.1358994]
[1746539712858,0.3139617,93498.0,93497.0,0.1358994]
[1746539713058,0.4066817,93498.0,93497.0,0.1358994]
[1746539713266,0.2139846,93488.0,93485.0,0.00267436]
[1746539713465,0.3139846,93488.0,93485.0,0.00267436]
[1746539713768,0.3139846,93488.0,93487.0,0.21559139]
[1746539713964,0.3139846,93488.0,93487.0,0.00160449]
[1746539714163,0.4653846,93488.0,93487.0,0.00160449]
[1746539714562,0.4653846,93488.0,93487.0,0.12740449]
[1746539714761,0.4653846,93488.0,93487.0,0.34139139]
[1746539715363,0.2139846,93488.0,93487.0,0.34139139]
[1746539716171,0.2139846,93488.0,93487.0,0.51939139]
[1746539718661,0.1182,93493.0,93487.0,0.30540449]
[1746539718860,0.6282448,93504.0,93503.0,0.2139503]
[1746539719065,0.2139617,93500.0,93499.0,0.2139572]
[1746539719271,0.2139617,93500.0,93499.0,0.3303572]
[1746539719572,0.2139617,93498.0,93497.0,0.3608]
[1746539720175,0.3342617,93498.0,93497.0,0.3608]
[1746539720679,0.3342617,93498.0,93489.0,0.1197]
[1746539720680,0.0534943,93492.0,93489.0,0.3871731]
[1746539720880,0.2139801,93490.0,93489.0,0.3871731]
[1746539721173,0.2139801,93490.0,93489.0,0.5651731]
[1746539721365,0.4588801,93490.0,93489.0,0.5651731]
[1746539721877,0.2139801,93490.0,93489.0,0.5651731]
[1746539722264,0.1279,93499.0,93498.0,0.2139617]
[1746539722468,0.0534878,93503.0,93502.0,0.2139503]
[1746539722877,0.574748,93504.0,93503.0,0.2139503]
[1746539723077,0.574748,93504.0,93503.0,0.22966633]
[1746539723276,0.574748,93504.0,93503.0,0.40766633]
[1746539724168,0.574748,93504.0,93503.0,0.22966633]
[1746539724568,0.574748,93504.0,93503.0,0.01571603]
[1746539724777,0.574748,93504.0,93503.0,0.22966633]
[1746539725167,0.574748,93504.0,93503.0,0.40766633]
[1746539725976,0.574748,93504.0,93503.0,0.19371603]
[1746539726379,0.574748,93504.0,93503.0,0.40766633]
[1746539726877,0.674748,93504.0,93503.0,0.19371603]
[1746539727073,0.674748,93504.0,93503.0,0.01571603]
[1746539727378,0.831696,93504.0,93503.0,1e-08]
[1746539727872,1.192496,93504.0,93503.0,1e-08]
[1746539728072,0.2139846,93488.0,93487.0,0.00160449]
[1746539728271,0.3139846,93488.0,93487.0,0.00160449]
[1746539728473,0.2139846,93488.0,93487.0,0.00160449]
[1746539728675,0.2139846,93488.0,93487.0,0.21559139]
[1746539729680,0.2139846,93488.0,93487.0,0.57639139]
[1746539730177,0.2139846,93488.0,93487.0,0.75439139]
[1746539730878,0.0534946,93491.0,93488.0,0.0534956]
[1746539731180,0.2674747,93491.0,93490.0,0.2139801]
[1746539731573,0.3209596,93498.0,93497.0,0.213964]
[1746539731774,0.3209596,93498.0,93497.0,0.574764]
[1746539731971,0.00789257,93505.0,93497.0,0.574764]
[1746539732173,0.18429123,93506.0,93505.0,0.2139457]
[1746539732372,0.13429123,93506.0,93505.0,0.2139457]
[1746539732573,0.34823463,93506.0,93505.0,0.2139457]
[1746539732779,0.213948,93505.0,93504.0,0.2139479]
[1746539732976,0.13429123,93506.0,93505.0,0.2139457]
[1746539733177,0.0534828,93512.0,93505.0,0.2139457]
[1746539733178,0.1617585,93516.0,93515.0,0.2139229]
[1746539733380,0.18869333,93534.0,93533.0,0.2138817]
[1746539733680,0.18869333,93534.0,93533.0,0.59052044]
[1746539734069,0.13477432,93535.0,93534.0,0.2673488]
[1746539734381,0.13477432,93535.0,93534.0,0.40928754]
[1746539735072,0.34865142,93535.0,93534.0,0.35581814]
[1746539735278,0.34865142,93535.0,93534.0,0.53381814]
[1746539735878,0.44865142,93535.0,93534.0,0.178]
[1746539736283,0.34865142,93535.0,93534.0,0.2138794]
[1746539736782,0.60365142,93535.0,93534.0,0.2138794]
[1746539737789,0.13477432,93535.0,93534.0,0.2138794]
[1746539738084,0.13477432,93535.0,93534.0,0.5426465]
[1746539738476,0.13477432,93535.0,93534.0,0.55283823]
[1746539738686,0.0015,93540.0,93539.0,0.213868]
[1746539739076,0.2138725,93538.0,93537.0,0.2138718]
[1746539739275,0.2138725,93538.0,93537.0,0.15091068]
[1746539739476,0.2138725,93538.0,93537.0,0.01581068]
[1746539739784,0.4799725,93538.0,93537.0,0.01581068]
[1746539739983,0.5799725,93538.0,93537.0,0.01581068]
[1746539741179,0.4799725,93538.0,93537.0,0.01581068]
[1746539741794,0.4799725,93538.0,93537.0,0.59048318]
[1746539742083,0.2138725,93538.0,93537.0,0.59048489]
[1746539742481,0.4799725,93538.0,93537.0,0.72398489]
[1746539743081,0.3414725,93538.0,93537.0,0.90198489]
[1746539743273,0.2138725,93538.0,93537.0,0.90198489]
[1746539743976,0.0549665,93540.0,93537.0,0.90198489]
[1746539743977,0.0015,93540.0,93539.0,0.213868]
[1746539744281,0.0015,93540.0,93539.0,0.391868]
[1746539744682,0.0015,93540.0,93539.0,0.40768039]
[1746539744985,0.2153657,93540.0,93539.0,0.40768039]
[1746539745183,0.0015,93540.0,93539.0,0.40768039]
[1746539746584,0.2153657,93540.0,93539.0,0.40768039]
[1746539747181,0.2153657,93540.0,93539.0,0.391868]
[1746539747389,0.2153657,93540.0,93539.0,0.40767459]
[1746539747584,0.0015,93540.0,93539.0,0.391868]
[1746539749185,0.2153657,93540.0,93539.0,0.391868]
[1746539751186,0.0015,93540.0,93539.0,0.391868]
[1746539752379,0.0015,93540.0,93539.0,0.498776]
[1746539752586,0.001,93546.0,93545.0,0.2138542]
[1746539752791,0.00151,93551.0,93550.0,0.2138428]
[1746539753092,0.32162263,93558.0,93557.0,0.2138268]
[1746539753288,0.10779813,93558.0,93557.0,0.2138268]
[1746539754196,0.10779813,93558.0,93557.0,0.3918268]
[1746539754490,0.303047,93574.0,93571.0,0.2672385]
[1746539754794,0.2137934,93572.0,93571.0,0.2672385]
[1746539755291,0.0015,93575.0,93574.0,0.213788]
[1746539755685,0.2152857,93575.0,93574.0,0.213788]
[1746539756287,0.0534475,93574.0,93570.0,0.3608]
[1746539756593,0.2137948,93571.0,93570.0,0.3608]
[1746539756792,0.2137948,93571.0,93570.0,0.5745971]
[1746539758991,0.0015,93575.0,93574.0,0.213788]
[1746539759486,0.0015,93575.0,93574.0,0.320656]
[1746539759685,0.47944,93595.0,93594.0,0.2137423]
[1746539759896,0.2657,93595.0,93594.0,0.2137423]
[1746539760096,0.2137446,93593.0,93592.0,0.3608]
[1746539760293,0.3206557,93584.0,93583.0,0.2671929]
[1746539760492,0.2672134,93584.0,93583.0,0.2671929]
[1746539761296,0.2672134,93584.0,93583.0,0.3917533]
[1746539761999,0.2672134,93584.0,93583.0,0.178]
[1746539762200,0.2672134,93584.0,93583.0,0.2137674]
[1746539762799,0.0534343,93597.0,93594.0,0.053435]
[1746539763112,0.2137514,93595.0,93594.0,0.3206077]
[1746539763801,0.3471514,93595.0,93594.0,0.3206077]
[1746539765211,0.0534327,93599.0,93598.0,0.2137309]
[1746539765414,0.2671636,93599.0,93598.0,0.2137309]
[1746539765607,0.5315636,93599.0,93598.0,0.2137309]
[1746539768715,0.4781309,93599.0,93598.0,0.2137309]
[1746539769107,0.001,93606.0,93599.0,0.2137309]
[1746539769306,0.0534305,93603.0,93599.0,0.3460309]
[1746539769507,0.001,93606.0,93599.0,0.3460309]
[1746539769908,0.3137286,93600.0,93599.0,0.4776309]
[1746539770114,0.1,93600.0,93599.0,0.6556309]
[1746539771213,0.001,93606.0,93605.0,0.2137172]
[1746539771413,0.001,93606.0,93605.0,0.5745172]
[1746539771612,0.001,93606.0,93605.0,0.6813492]
[1746539771821,0.001,93606.0,93605.0,2.1813492]
[1746539772117,0.001,93606.0,93605.0,2.2525172]
[1746539772418,0.001,93606.0,93605.0,2.3869172]
[1746539772615,0.0015,93610.0,93609.0,0.213708]
[1746539772810,0.0015,93610.0,93609.0,0.574508]
[1746539773117,0.16162455,93619.0,93618.0,0.2136875]
[1746539773320,0.16162455,93619.0,93618.0,0.5744875]
[1746539773621,0.16162455,93619.0,93618.0,0.6813035]
[1746539773814,0.16162455,93619.0,93618.0,2.1813035]
[1746539774014,0.1361,93635.0,93633.0,0.213651]
[1746539774212,0.3497487,93635.0,93634.0,0.4917]
[1746539774411,0.4921487,93635.0,93634.0,0.4917]
[1746539774915,0.4921487,93635.0,93634.0,0.705351]
[1746539775216,0.4921487,93635.0,93634.0,0.883351]
[1746539775611,0.2785,93635.0,93634.0,0.883351]
[1746539775923,0.4921487,93635.0,93634.0,0.883351]
[1746539776914,0.4921487,93635.0,93634.0,0.5388]
[1746539777125,0.4921487,93635.0,93634.0,0.178]
[1746539777312,0.3204948,93632.0,93631.0,0.0534143]
[1746539777512,0.3204948,93632.0,93631.0,0.2670721]
[1746539778425,0.2136647,93628.0,93627.0,0.6278757]
[1746539778720,0.2136647,93628.0,93627.0,0.68944941]
[1746539779111,0.2136647,93628.0,93627.0,0.86744941]
[1746539779309,0.3528647,93628.0,93627.0,0.86744941]
[1746539779915,0.3528647,93628.0,93627.0,0.81403271]
[1746539782122,0.3528647,93628.0,93627.0,0.5388]
[1746539782516,0.3528647,93628.0,93627.0,0.7524669]
[1746539783021,0.1392,93628.0,93627.0,0.7524669]
[1746539783220,0.1302,93642.0,93635.0,0.2136487]
[1746539783517,0.3283088,93641.0,93635.0,0.5744487]
[1746539783823,0.2749,93641.0,93635.0,0.5744487]
[1746539784125,0.2749,93641.0,93635.0,0.7524487]
[1746539784321,0.2146464,93636.0,93635.0,1.0300487]
[1746539784523,0.001,93636.0,93635.0,1.0300487]
[1746539785522,0.0015,93645.0,93635.0,1.0300487]
[1746539785523,0.0015,93645.0,93644.0,0.2136282]
[1746539785722,0.0015,93645.0,93644.0,0.5744282]
[1746539785924,0.34814567,93665.0,93653.0,0.2136076]
[1746539785925,0.0533983,93660.0,93653.0,0.2136076]
[1746539786116,0.2136045,93655.0,93653.0,0.7524076]
[1746539786317,0.2136045,93655.0,93654.0,0.2136053]
[1746539786517,0.2136045,93655.0,93654.0,0.4759053]
[1746539787127,0.2136045,93655.0,93654.0,0.6539053]
[1746539787523,0.0533942,93667.0,93655.0,0.0534007]
[1746539787826,0.2655,93665.0,93664.0,0.2135825]
[1746539788027,0.2655,93665.0,93664.0,0.5743825]
[1746539788328,0.0015,93680.0,93679.0,0.2135483]
[1746539789018,0.0015,93680.0,93679.0,0.5743483]
[1746539789219,0.16162455,93686.0,93685.0,0.2135347]
[1746539789420,0.1327,93691.0,93690.0,0.2135233]
[1746539789714,0.2728,93691.0,93690.0,0.5743233]
[1746539790123,0.486321,93691.0,93690.0,0.5743233]
[1746539790325,0.2728,93691.0,93690.0,0.5743233]
[1746539790520,0.0533831,93686.0,93670.0,0.0533916]
[1746539790725,0.2135461,93683.0,93682.0,0.2135372]
[1746539791323,0.5397195,93685.0,93684.0,0.2135369]
[1746539792428,0.4863358,93685.0,93684.0,0.2135369]
[1746539792733,0.001,93696.0,93694.0,0.2135142]
[1746539793032,0.3437119,93695.0,93694.0,0.5743142]
[1746539794024,0.2135369,93684.0,93683.0,0.4022201]
[1746539794229,0.2135369,93684.0,93683.0,0.2135362]
[1746539794427,0.2135461,93680.0,93674.0,0.3608]
[1746539794624,0.2135803,93665.0,93664.0,0.3556813]
[1746539794825,0.2135803,93665.0,93664.0,1.86375971]
[1746539795223,0.494778,93666.0,93665.0,0.2135803]
[1746539795422,0.354978,93666.0,93665.0,0.3556803]
[1746539796830,0.354978,93666.0,93665.0,0.2135803]
[1746539797830,0.2135803,93665.0,93664.0,0.00807841]
[1746539798030,0.2135848,93664.0,93663.0,0.2135844]
[1746539798420,0.3654848,93664.0,93663.0,0.2135844]
[1746539799232,0.1519,93664.0,93663.0,0.2135844]
[1746539799438,0.1285,93673.0,93663.0,0.2135844]
[1746539799439,0.3420647,93673.0,93672.0,0.2135643]
[1746539799925,0.4488207,93673.0,93672.0,0.2135643]
[1746539800126,0.3420647,93673.0,93672.0,0.2135643]
[1746539800328,0.1519,93674.0,93673.0,0.213562]
[1746539800928,0.2135825,93666.0,93665.0,0.213578]
[1746539801231,0.2135825,93666.0,93665.0,0.391578]
[1746539801533,0.4195775,93666.0,93665.0,0.4449728]
[1746539801932,0.3661825,93666.0,93665.0,0.4449728]
[1746539802136,0.1526,93666.0,93665.0,0.4449728]
[1746539802640,0.2135642,93673.0,93672.0,0.2669502]
[1746539802830,0.2135642,93673.0,93672.0,0.7699502]
[1746539803026,0.2135642,93673.0,93672.0,0.9098502]
[1746539803225,0.0533854,93682.0,93672.0,0.6429]
[1746539803435,0.2135493,93680.0,93679.0,0.2669326]
[1746539805032,0.0533824,93688.0,93687.0,0.2669076]
[1746539805440,0.29438757,93690.0,93689.0,0.2135256]
[1746539806439,0.08086247,93690.0,93689.0,0.3546256]
[1746539806633,0.29438577,93690.0,93689.0,0.3546256]
[1746539807637,0.2135233,93690.0,93689.0,1.8546256]
[1746539807848,0.2668994,93692.0,93691.0,0.213521]
[1746539808244,0.001,93696.0,93692.0,0.0533791]
[1746539808536,0.2145119,93696.0,93695.0,0.5743119]
[1746539808840,0.2145119,93696.0,93695.0,0.3608]
[1746539809038,0.3557119,93696.0,93695.0,0.3608]
[1746539809829,0.4997119,93696.0,93695.0,0.3608]
[1746539810144,0.4997119,93696.0,93695.0,0.5743119]
[1746539810443,0.4997119,93696.0,93695.0,0.3608]
[1746539811140,0.4997119,93696.0,82837.0,0.00077203]
[1746539811141,0.2135324,93686.0,93685.0,0.2135347]
[1746539812045,0.5127324,93686.0,93685.0,0.2135347]
[1746539812245,0.5127324,93686.0,93685.0,0.3624347]
[1746539812546,0.3575324,93686.0,93685.0,0.3624347]
[1746539812745,0.2135324,93686.0,93685.0,0.3624347]
[1746539813046,0.1453,93694.0,93687.0,0.0533823]
[1746539813243,0.213517,93693.0,93692.0,0.5743164]
[1746539814346,0.001,93696.0,93695.0,0.2135119]
[1746539814543,0.2145096,93696.0,93695.0,0.2135119]
[1746539815150,0.2145096,93696.0,93695.0,0.3915119]
[1746539815451,0.5088096,93696.0,93695.0,0.3915119]
[1746539816138,0.3598096,93696.0,93695.0,0.2135119]
[1746539816339,0.001,93696.0,93695.0,0.2135119]
[1746539816542,0.2145096,93696.0,93695.0,0.2135119]
[1746539817250,0.2145096,93696.0,93695.0,0.3915119]
[1746539819145,0.2145096,93696.0,93695.0,0.2135119]
[1746539819450,0.2135142,93694.0,93693.0,0.2668933]
[1746539820349,0.2135164,93693.0,93692.0,0.5743187]
[1746539820740,0.2135278,93689.0,93687.0,0.053382]
[1746539821042,0.2135301,93687.0,93686.0,0.2135249]
[1746539821243,0.2135301,93687.0,93679.0,0.2120987]
[1746539821244,0.2669205,93686.0,93685.0,0.2135343]
[1746539821450,0.2135415,93682.0,93673.0,0.0533903]
[1746539821750,0.2135415,93682.0,93681.0,0.5743438]
[1746539823050,0.2135415,93682.0,93681.0,0.3608]
[1746539823255,0.2135415,93682.0,93681.0,0.5743438]
[1746539823655,0.213532,93687.0,93686.0,0.2135301]
[1746539823845,0.2669018,93691.0,93690.0,0.213521]
[1746539824049,0.2135125,93695.0,93694.0,0.2135142]
[1746539824653,0.5116125,93695.0,93694.0,0.2135142]
[1746539827256,0.5116125,93695.0,93691.0,0.05338]
[1746539827257,0.2135233,93691.0,93690.0,0.2135231]
[1746539827554,0.2135233,93691.0,93690.0,0.5743231]
[1746539827758,0.2135233,93691.0,93690.0,0.2135231]
[1746539830459,0.2135233,93691.0,93690.0,0.3591231]
[1746539831057,0.2135184,93693.0,93692.0,0.2135164]
[1746539831358,0.2135184,93693.0,93692.0,0.5079164]
[1746539831858,0.2145113,93696.0,93695.0,0.2135119]
[1746539835865,0.25864086,93696.0,93695.0,0.2135119]
[1746539836262,0.2135164,93693.0,93692.0,0.3575187]
[1746539836467,0.2135164,93693.0,93692.0,0.144]
[1746539836678,0.2135256,93689.0,93688.0,0.5743274]
[1746539837369,0.2135256,93689.0,93688.0,0.3608]
[1746539837569,0.5061256,93689.0,93688.0,0.3608]
[1746539837771,0.5061256,93689.0,93688.0,0.5743278]
[1746539839469,0.0533788,93694.0,93690.0,0.0533806]
[1746539839664,0.266898,93694.0,93693.0,0.2135164]
[1746539840169,0.2145096,93696.0,93695.0,0.2135119]
[1746539841061,0.2145096,93696.0,93695.0,0.3915119]
[1746539841259,0.001,93696.0,93695.0,0.3915119]
[1746539843778,0.001,93696.0,93695.0,1.8915119]
[1746539844874,0.25863527,93696.0,93695.0,1.8915119]
[1746539846971,0.25891629,93696.0,93695.0,1.8915119]
[1746539848579,0.04540669,93696.0,93695.0,1.8915119]
[1746539848778,0.00128102,93696.0,93695.0,1.8915119]
[1746539851887,1e-08,93699.0,93698.0,0.213505]
[1746539852179,0.54949333,93724.0,93707.0,0.2134845]
[1746539852381,0.02195674,93708.0,93707.0,0.5742845]
[1746539852585,4e-08,93712.0,93711.0,0.2134754]
[1746539853282,4e-08,93715.0,93714.0,0.2134686]
[1746539853488,0.13014517,93725.0,93724.0,0.2134458]
[1746539853679,0.13014517,93725.0,93724.0,0.6596458]
[1746539853881,0.13014517,93725.0,93724.0,2.1596458]
[1746539854288,0.13014517,93725.0,93724.0,2.3376458]
[1746539854877,0.13014517,93725.0,93724.0,2.2522458]
[1746539855083,0.34358867,93725.0,93724.0,2.2522458]
[1746539855284,0.63998867,93725.0,93724.0,2.0742458]
[1746539855483,0.42654517,93725.0,93724.0,0.5742458]
[1746539855684,0.63998867,93725.0,93724.0,0.5742458]
[1746539856794,0.5098435,93725.0,93724.0,0.5742458]
[1746539858593,0.2964,93725.0,93724.0,0.5742458]
[1746539859091,0.5098435,93725.0,93724.0,0.5742458]
[1746539859483,0.5098435,93725.0,93724.0,0.58214296]
[1746539860291,0.5098435,93725.0,93724.0,0.36869716]
[1746539860489,0.5098435,93725.0,93724.0,0.58214306]
[1746539861997,0.5098435,93725.0,93724.0,0.36869716]
[1746539862302,0.5098435,93725.0,93724.0,0.58214306]
[1746539862491,0.3202145,93713.0,93702.0,0.3608]
[1746539862693,0.2134755,93711.0,93710.0,0.2668449]
[1746539863200,0.5072755,93711.0,93710.0,0.2668449]
[1746539864410,0.5072755,93711.0,93710.0,0.27484978]
[1746539866502,0.5072755,93711.0,93710.0,0.00800488]
[1746539866808,0.10922844,93726.0,93725.0,0.2134436]
[1746539867009,0.10922844,93726.0,93725.0,0.22149974]
[1746539867010,0.32267094,93726.0,93725.0,0.22149974]
[1746539867612,0.46947094,93726.0,93725.0,0.22149974]
[1746539868313,0.5107425,93726.0,93725.0,0.22149974]
[1746539868914,0.5107425,93726.0,93725.0,0.2134436]
[1746539870714,0.2134505,93722.0,93721.0,0.36891861]
[1746539871016,0.2134733,93712.0,93711.0,0.3666755]
[1746539871708,0.2134733,93712.0,93711.0,0.2134755]
[1746539871907,0.2134778,93710.0,93709.0,0.5742776]
[1746539872107,0.2134778,93710.0,93709.0,0.58241943]
[1746539873119,0.2134778,93710.0,93709.0,0.73561943]
[1746539875308,0.2134778,93710.0,93709.0,0.00814183]
[1746539875508,0.2134983,93701.0,93700.0,0.4182673]
[1746539875916,0.2134983,93701.0,93700.0,0.5667673]
[1746539876522,0.5114983,93701.0,93700.0,0.5667673]
[1746539877320,0.2134983,93701.0,93700.0,0.5667673]
[1746539877718,0.0533734,93703.0,93701.0,0.213496]
[1746539877719,0.2134973,93702.0,93701.0,0.213496]
[1746539878321,0.2134973,93702.0,93701.0,0.511396]
[1746539878522,0.2134973,93702.0,93701.0,0.51940656]
[1746539880518,0.29479677,93703.0,93702.0,0.213496]
[1746539880714,0.08130297,93703.0,93702.0,0.504396]
[1746539880912,0.08130297,93703.0,93702.0,1.010496]
[1746539881120,0.10832604,93706.0,93705.0,0.053372]
[1746539881320,0.10832604,93706.0,93705.0,0.2668612]
[1746539881821,0.16256782,93721.0,93720.0,0.213455]
[1746539882017,0.37602062,93721.0,93720.0,0.574255]
[1746539882713,0.37602062,93721.0,93720.0,0.867855]
[1746539883116,0.16256782,93721.0,93720.0,0.867855]
[1746539883424,0.0015,93750.0,93744.0,0.2667453]
[1746539883425,0.2667613,93745.0,93744.0,0.2667453]
[1746539883620,0.2667613,93745.0,93744.0,0.6275453]
[1746539884025,0.5729613,93745.0,93744.0,0.6275453]
[1746539884417,0.6263129,93745.0,93744.0,0.3608]
[1746539886125,0.3201597,93732.0,93730.0,0.3608]
[1746539886328,0.3201597,93732.0,93731.0,0.3591183]
[1746539886632,0.3201597,93732.0,93731.0,0.2134183]
[1746539886927,0.2667808,93734.0,93733.0,0.2134254]
[1746539887122,0.213425,93734.0,93733.0,0.2134254]
[1746539888531,0.08131225,93736.0,93735.0,0.2134209]
[1746539889020,0.29473085,93736.0,93735.0,0.2134209]
[1746539889624,0.2134232,93734.0,93733.0,0.2134227]
[1746539889823,0.2134277,93732.0,93731.0,0.1465]
[1746539890125,0.2134277,93732.0,93726.0,0.0533602]
[1746539890126,0.0533673,93715.0,93708.0,0.08488]
[1746539890421,0.2134608,93723.0,93722.0,0.2134482]
[1746539890622,0.3608,93724.0,93723.0,0.2134482]
[1746539891020,0.2134403,93727.0,93726.0,0.2134414]
[1746539891227,0.2667952,93729.0,93728.0,0.2134368]
[1746539891426,0.0533535,93738.0,93729.0,0.0533581]
[1746539891730,0.3608,93742.0,93735.0,0.2134209]
[1746539891929,0.2134125,93739.0,93735.0,0.2134209]
[1746539892228,0.0533524,93740.0,93735.0,0.3914209]
[1746539892426,0.3608,93742.0,93735.0,0.3914209]
[1746539892628,0.3608,93742.0,93735.0,0.6964209]
[1746539892629,0.29473085,93736.0,93735.0,0.6964209]
[1746539893019,0.2134186,93736.0,93735.0,0.6964209]
[1746539893424,0.2134156,93738.0,93737.0,0.213414]
[1746539893825,0.34893301,93739.0,93738.0,0.213414]
[1746539894128,0.34893301,93739.0,93738.0,0.518414]
[1746539895131,0.13552041,93739.0,93738.0,0.518414]
[1746539895830,0.34893221,93739.0,93738.0,0.518414]
[1746539896128,0.0533407,93761.0,93738.0,0.58968]
[1746539896333,0.0533407,93761.0,93749.0,0.213389]
[1746539896522,0.2148867,93750.0,93749.0,0.213389]
[1746539896723,0.2148867,93750.0,93749.0,1.713389]
[1746539897132,0.2148867,93750.0,93749.0,0.357889]
[1746539897725,0.0015,93750.0,93749.0,0.357889]
[1746539898330,0.0015,93750.0,93749.0,0.688189]
[1746539899132,0.2148867,93750.0,93749.0,0.688189]
[1746539899521,0.2148867,93750.0,93749.0,1.9748]
[1746539899723,0.2148867,93750.0,93749.0,2.188189]
[1746539899925,0.2148867,93750.0,93749.0,0.178]
[1746539900131,0.2133936,93747.0,93746.0,0.2133955]
[1746539900331,0.2134095,93740.0,93739.0,0.3657071]
[1746539900531,0.2134095,93740.0,93739.0,0.2134071]
[1746539901225,0.2134095,93740.0,93739.0,0.3659071]
[1746539901630,0.2134095,93740.0,93739.0,0.5141071]
[1746539901631,0.3567095,93740.0,93739.0,0.5141071]
[1746539902029,0.3567095,93740.0,93739.0,0.1482]
[1746539902231,0.3567095,93740.0,93739.0,0.3616118]
[1746539902429,0.2134095,93740.0,93739.0,0.3616118]
[1746539902629,0.2134083,93741.0,93740.0,0.2134095]
[1746539902824,0.1966494,93746.0,93740.0,0.2134095]
[1746539902825,0.2134014,93744.0,93743.0,0.2667482]
[1746539903129,0.6808988,93747.0,93746.0,0.2133958]
[1746539903837,0.2134004,93745.0,93744.0,0.2133983]
[1746539904337,0.2134004,93745.0,93744.0,0.3664983]
[1746539904545,0.3585004,93745.0,93744.0,0.3664983]
[1746539906340,0.3608,93747.0,93746.0,0.2133958]
[1746539906934,0.5741936,93747.0,93746.0,0.2133958]
[1746539907841,0.3608,93747.0,93746.0,0.2133958]
[1746539908036,0.5741936,93747.0,93746.0,0.2133958]
[1746539908343,0.3608,93747.0,93746.0,0.2133958]
[1746539909245,0.3608,93747.0,93746.0,0.3913958]
[1746539909440,0.5741936,93747.0,93746.0,0.3913958]
[1746539909642,0.3608,93747.0,93746.0,0.3913958]
[1746539909940,0.5741936,93747.0,93746.0,0.3913958]
[1746539910242,0.3608,93747.0,93746.0,0.3913958]
[1746539910744,0.5741936,93747.0,93746.0,0.3913958]
[1746539911240,0.5741936,93747.0,93717.0,0.08432]
[1746539911241,0.2134596,93718.0,93717.0,0.08432]
[1746539911541,0.2134573,93719.0,93718.0,0.4235196]
[1746539912140,0.2134573,93719.0,93718.0,0.6015196]
[1746539912335,0.2134573,93719.0,93718.0,0.4448196]
[1746539913136,0.2134573,93719.0,93718.0,0.2134555]
[1746539916542,0.213471,93713.0,93701.0,0.27000883]
[1746539916737,0.213471,93713.0,93712.0,0.2134733]
[1746539917737,0.13451863,93721.0,93715.0,0.0533664]
[1746539917941,0.08115523,93721.0,93718.0,0.2134596]
[1746539918141,0.2134556,93720.0,93718.0,0.2134596]
[1746539918544,0.08115523,93721.0,93718.0,0.2134596]
[1746539918744,0.08115523,93721.0,93720.0,0.213455]
[1746539919249,0.29460803,93721.0,93720.0,0.391455]
[1746539920250,0.29460803,93721.0,93720.0,0.535555]
[1746539920942,0.2134528,93721.0,93720.0,0.535555]
[1746539921348,0.2134528,93721.0,93720.0,0.178]
[1746539921849,0.3134528,93721.0,93720.0,0.178]
[1746539922240,0.2134619,93717.0,93716.0,0.213463]
[1746539923352,0.3599619,93717.0,93716.0,0.213463]
[1746539925449,0.1465,93717.0,93716.0,0.371663]
[1746539925649,0.3599619,93717.0,93716.0,0.371663]
[1746539925950,0.1465,93717.0,93716.0,0.371663]
[1746539926340,0.0533629,93722.0,93720.0,0.2134528]
[1746539926545,0.5711134,93722.0,93721.0,0.5214528]
[1746539930456,0.5177505,93722.0,93721.0,0.5214528]
[1746539932657,0.5177505,93722.0,93721.0,0.308]
[1746539933751,0.5177505,93722.0,93721.0,0.1498]
[1746539933953,0.4043,93722.0,93709.0,0.213477]
[1746539934146,0.2134824,93708.0,93707.0,0.1467]
[1746539934858,0.2134824,93709.0,93708.0,0.2134824]
[1746539935155,0.2134824,93709.0,93708.0,0.3914824]
[1746539935356,0.2134824,93709.0,93708.0,0.6802824]
[1746539935754,0.6276378,93716.0,93715.0,0.2134664]
[1746539935957,0.5742715,93716.0,93715.0,0.2134664]
[1746539936258,0.5742641,93716.0,93715.0,0.3914664]
[1746539936958,0.5742641,93716.0,93715.0,0.6802664]
[1746539937961,0.3608,93716.0,93715.0,0.6802664]
[1746539939360,0.08115523,93718.0,93717.0,0.2134619]
[1746539939859,0.29461483,93718.0,93717.0,0.2134619]
[1746539940059,0.29461483,93718.0,93717.0,0.3914619]
[1746539940659,0.29461483,93718.0,93717.0,0.178]
[1746539940859,0.29461483,93718.0,93717.0,0.3914619]
[1746539941253,0.70711483,93718.0,93717.0,0.3914619]
[1746539941449,0.70711483,93718.0,93717.0,0.178]
[1746539941758,0.60711483,93718.0,93717.0,0.178]
[1746539942063,0.60711483,93718.0,93717.0,0.2134619]
[1746539943663,0.5259596,93718.0,93717.0,0.2134619]
[1746539944464,0.13531744,93723.0,93722.0,0.2134505]
[1746539944663,0.34876564,93723.0,93722.0,0.2134505]